Cogmind - Beta 12 X4 @@@ ROGUE MODE // 2022.12.15 @ 14:45:48 // Halloween2019/Abominations Player: Terminus Result: Destroyed by Minor Abomination with Particle Gun Performance ------------- Evolutions (0) 0 Regions Visited (1) 200 Robots Destroyed (6) 30 Value Destroyed (302) 302 Prototype IDs (0) 0 Alien Tech Used (0) 0 Bonus (0) 0 TOTAL SCORE: 532 Bonus ------- None Cogmind --------- Core Integrity 0/250 Matter 300/300 Energy 100/100 System Corruption 0% Temperature Cool (9) Movement Core (150) Ox2 Location -10/Materials Parts ------- > --- POWER (1) -------- (None) > --- PROPULSION (2) --- (None) > --- UTILITY (2) ------ Small Storage Unit > --- WEAPON (2) ------- Flail > --- INVENTORY (8) ---- Small Laser Light Assault Rifle Flail Peak State ------------ > --- POWER ------------ Ion Engine > --- PROPULSION ------- Aluminum Leg Aluminum Leg > --- UTILITY ---------- Small Storage Unit Medium Armor Plating > --- WEAPON ----------- Small Laser Light Assault Rifle > --- INVENTORY -------- Light Ion Engine Medium Armor Plating Medium Armor Plating Small Laser Flail Flail [Rating: 9] Favorites ----------- Power Ion Engine Engine Ion Engine Propulsion Aluminum Leg Leg Aluminum Leg Utility Small Storage Unit Storage Small Storage Unit Protection Medium Armor Plating Weapon Small Laser Energy Gun Small Laser Ballistic Gun Light Assault Rifle Impact Weapon Flail Build | -11 -10 ------- Run | Scr Mat Slots Evolved . | . . Power . | . . Propulsion . | . . Utility . | . . Weapon . | . . Parts Attached 14 | 6 8 Power 2 | 1 1 Engine 2 | 1 1 Core . | . . Reactor . | . . Propulsion 2 | 2 . Treads . | . . Leg 2 | 2 . Wheel . | . . Hover . | . . Flight . | . . Utility 4 | 1 3 Device . | . . Storage 1 | 1 . Processor . | . . Hackware . | . . Protection 3 | . 3 Artifact . | . . Weapon 6 | 2 4 Energy Gun 3 | 2 1 Energy Cannon . | . . Ballistic Gun 1 | . 1 Ballistic Cannon . | . . Launcher . | . . Special Weapon . | . . Impact Weapon 2 | . 2 Slashing Weapon . | . . Piercing Weapon . | . . Special Melee Weapon . | . . Unidentified Prototypes . | . . Parts Lost 8 | . 8 Power 2 | . 2 Propulsion 2 | . 2 Utility 3 | . 3 Weapon 1 | . 1 Highest Loss Streak 8 | . 8 To Critical Strikes . | . . Average Slot Usage (%) 89 | . 89 Engine 12 | . 12 Leg 24 | . 24 Storage 14 | . 14 Protection 9 | . 9 Energy Gun 15 | . 15 Ballistic Gun 9 | . 9 Impact Weapon 2 | . 2 Naked Turns . | . . Heaviest Build 19 | 12 19 Greatest Support 20 | 20 20 Greatest Overweight (x) 5 | 3 5 Average Overweight (x) . | . . Largest Inventory Capacity 8 | 8 8 Average Capacity 7 | 7 8 Most Carried 7 | 2 7 Average Carried 3 | 1 4 Final Capacity 8 | 8 8 Final Carried 3 | 2 3 Class Distribution -------------------- 100% | Mutant Dominant Class ---------------- Mutant | -10/Materials Resources | -11 -10 ----------- Run | Scr Mat Matter Collected 333 | 181 152 Remotely . | . . Salvage Created 280 | . 280 Parts 10 | . 10 Haulers Intercepted 1 | . 1 Recyclers Shooed . | . . Parts Field Recycled . | . . Retrieved Matter . | . . Parts Self-Destructed . | . . Prevented . | . . Kills | -11 -10 ------- Run | Scr Mat Combat Hostiles Destroyed 5 | . 5 Guns 3 | . 3 Classes Destroyed 2 | . 2 Hauler 1 | . 1 Abomination 5 | . 5 Best Kill Streak 2 | . 2 Combat Bots Only 2 | . 2 Max Kills in Single Turn 1 | . 1 Gunslinging . | . . Exploded . | . . Melee . | . . Uniques/NPCs Destroyed . | . . Combat | -11 -10 -------- Run | Scr Mat Damage Taken 1194 | . 1194 Core 257 | . 257 Absorbed by Shields . | . . Core Remaining (%) 100 | 100 . Volleys Fired 33 | . 33 Largest 2 | . 2 Hottest 60 | . 60 Shots Fired 63 | . 63 Gun 63 | . 63 Cannon . | . . Launcher . | . . Special . | . . Kinetic 33 | . 33 Thermal 30 | . 30 Explosive . | . . Electromagnetic . | . . Robot Hit Streak 6 | . 6 Robot Miss Streak 4 | . 4 Penetration Max . | . . Secondary Targets . | . . Shots Hit Robots 45 | . 45 Core Hits 16 | . 16 Critical Kills . | . . Critical Parts Destroyed 2 | . 2 Critical Strikes 2 | . 2 Smash 2 | . 2 Melee Attacks 9 | . 9 Impact 9 | . 9 Slashing . | . . Piercing . | . . Sneak Attacks . | . . Combat Hostiles . | . . Follow-up Attacks . | . . Damage Inflicted 712 | . 712 Guns 407 | . 407 Cannons . | . . Explosions . | . . Melee 305 | . 305 Ramming . | . . Kinetic 151 | . 151 Thermal 256 | . 256 Explosive . | . . Electromagnetic . | . . Impact 305 | . 305 Slashing . | . . Piercing . | . . Highest Corruption . | . . Average Corruption . | . . Corruption Purged . | . . Corruption Blocked . | . . Overload Shots . | . . Overflow Damage 160 | . 160 Projectiles . | . . Explosions . | . . Melee 160 | . 160 Knockbacks 5 | . 5 Impact 4 | . 4 Kinetic . | . . Secondary 1 | . 1 Self-Inflicted Damage . | . . Shots . | . . Rammed . | . . Targets Rammed . | . . Kicked . | . . Crushed . | . . Highest Temperature 240 | . 240 Average Temperature 109 | . 109 Received Heat Transfer 564 | . 564 Siege Activations . | . . Robots Corrupted . | . . Combat Hostiles . | . . Parts Fried 4 | . 4 Impact Corruptions 8 | . 8 Robots Melted . | . . Combat Hostiles . | . . Parts Melted . | . . Heat Transferred 152 | . 152 Parts Sabotaged . | . . Parts Stolen . | . . Parts Stripped . | . . Power Chain Reactions . | . . Missiles Intercepted . | . . Alert | -11 -10 ------- Run | Scr Mat Peak Influence 7 | . 7 Initial . | . . Average 1 | . 2 Maximum Alert Level . | . . Low Security (%) 100 | 100 100 Level 1 . | . . Level 2 . | . . Level 3 . | . . Level 4 . | . . Level 5 . | . . High Security . | . . Max Security . | . . Squads Dispatched 2 | . 2 Investigation . | . . Extermination . | . . Reinforcement 1 | . 1 Assault 1 | . 1 Garrison . | . . Intercept . | . . Searches Triggered . | . . Construction Impeded . | . . Haulers Reinforced . | . . Active Scanning Responses . | . . Cargo Convoy Interrupts . | . . Stealth | -11 -10 --------- Run | Scr Mat Distress Signals . | . . Communications Jammed . | . . Distress Signals . | . . Times Spotted 11 | . 11 Peak Tracking Total 5 | . 5 Tactical Retreats 1 | . 1 Traps | -11 -10 ------- Run | Scr Mat Traps Triggered . | . . Indirectly . | . . Trap Hack Attempts . | . . Triggered . | . . Disarmed . | . . Reprogrammed . | . . Reused . | . . Traps Extracted . | . . Installed . | . . Triggered . | . . Machines | -11 -10 ---------- Run | Scr Mat Machines Disabled . | . . Max in Single Turn . | . . Machines Sabotaged . | . . Overloaded Fab Kills . | . . Hacking | -11 -10 --------- Run | Scr Mat Machines Accessed . | . . Terminals . | . . Fabricators . | . . Repair Stations . | . . Recycling Units . | . . Scanalyzers . | . . Garrison Access . | . . Total Hacks . | . . Successful . | . . Failed . | . . Catastrophic . | . . Database Lockouts . | . . Manual . | . . Terminals . | . . Fabricators . | . . Repair Stations . | . . Recycling Units . | . . Scanalyzers . | . . Garrison Access . | . . Terminal Hacks . | . . Fabricator Hacks . | . . Repair Station Hacks . | . . Recycling Unit Hacks . | . . Scanalyzer . | . . Garrison Access Hacks . | . . Unauthorized Hacks . | . . Terminals . | . . Fabricators . | . . Repair Stations . | . . Recycling Units . | . . Scanalyzers . | . . Garrison Access . | . . Data Cores Recovered . | . . Used . | . . Hacking Detections . | . . Full Trace Events . | . . Feedback Events . | . . Feedback Blocked . | . . Robot Schematics Acquired . | . . Robots Built . | . . Authchips . | . . Time . | . . Total Robot Build Rating . | . . Part Schematics Acquired . | . . Parts Built . | . . Authchips . | . . Time . | . . Total Part Build Rating . | . . Parts Repaired . | . . Time . | . . Parts Recycled . | . . Recycled Matter . | . . Retrieved Matter . | . . Retrieved Components . | . . Parts Scanalyzed . | . . Part Schematics Acquired . | . . Parts Damaged . | . . Bothacking | -11 -10 ------------ Run | Scr Mat Used RIF Installer . | . . Robots Hacked . | . . Non-combat . | . . Combat . | . . Robot Hacks Applied . | . . Relay Couplers Released . | . . Fabnet Peak Effective % . | . . Robots Rewired . | . . Allies Hacked . | . . Hacks Repelled . | . . Allies | -11 -10 -------- Run | Scr Mat Total Allies . | . . Largest Group . | . . Highest-Rated Group . | . . Highest-Rated Ally . | . . Total Orders . | . . Ally Attacks . | . . Total Damage . | . . Kills . | . . Allies Corrupted . | . . Allies Melted . | . . Intel | -11 -10 ------- Run | Scr Mat Robot Analysis Total . | . . Derelict Logs Recovered . | . . Drone Launches . | . . Drone Recoveries . | . . Exploration | -11 -10 ------------- Run | Scr Mat Turns Passed 316 | 69 247 Spaces Moved 137 | 49 88 Core 31 | 25 6 Treads . | . . Legs 106 | 24 82 Wheels . | . . Hover . | . . Flight . | . . Fastest Speed 50 | 50 120 Average Speed 121 | 116 124 Slowest Speed 300 | 200 300 Overloaded Moves . | . . Propulsion Burnouts . | . . Robots Hopped . | . . Cave-ins Triggered . | . . Exploration Rate (%) 10 | 4 16 Regions Visited 1 Branch Regions . Pre-discovered Areas . | . . Known Exits Taken . | . . Unknown Exits Taken 1 | 1 . Scrap Searched . | . . Spaces Dug . | . . Terrain Destroyed . | . . Melee . | . . Projectile . | . . AOE . | . . Terrain Rammed . | . . Walls Destroyed . | . . Machines Disabled . | . . Actions | -11 -10 --------- Run | Scr Mat Total 211 | 57 154 Wait 11 | 1 10 Move 136 | 48 88 Hop . | . . Pick Up 7 | 2 5 Fast Attach 7 | 6 1 Attach 3 | . 3 Detach . | . . Swap 4 | . 4 Drop 1 | . 1 Fire 33 | . 33 Melee 9 | . 9 Ram . | . . Kick . | . . Crush . | . . Escape Stasis . | . . Rewire . | . . Trap . | . . Miscellaneous . | . . Route ------- -11/Scrapyard -10/Materials History --------- Turn | Location | Event 3 | -11/Scrapyard | Discovered new exit (range 16) 70 | -11/Scrapyard | Entered Materials 292 | -10/Materials | Core integrity fell below 50% 308 | -10/Materials | Build established: Mutant 308 | -10/Materials | Core integrity fell below 20% 317 | -10/Materials | Destroyed by Minor Abomination with Particle Gun Last Messages --------------- 00299_ Lesser Abomination knocked back. 00306_ ALERT: Dispatching additional forces to engage threats. 00307_ Lesser Abomination suffers critical hit (Smash). 00307_ Destroyed Sml. Laser. 00307_ Destroyed Aluminum Leg. 00307_ Lesser Abomination system corrupted by crushing effect. 00307_ Lesser Abomination knocked back. 00310_ Destroyed Ion Engine. 00310_ Lesser Abomination system corrupted by crushing effect. 00310_ Lesser Abomination knocked back. 00311_ Lesser Abomination system terminally corrupted. 00311_ Lrg. Battery fried. 00311_ Aluminum Leg fried. 00311_ Visual Processing Unit fried. 00311_ K-01 Serf collects debris. 00312_ Acquired 42 matter. 00314_ Minor Abomination knocked back. 00316_ Lesser Abomination absorbs Corrupted Wheel. 00316_ K-01 Serf collects debris. 00316_ Acquired 40 matter. Map ----- +----------------------------------------------------+ | ?????????????????????????????????????????????????? | | ?????????????????????????????????????????????????? | | ?????????????????????????????????????????????????? | | ?????????????????????????????????????????????????? | | ?????????????????????????????????????????????????? | | ?????????????????????????????????????????????????? | | ?????????????????????????????????????????????????? | | ?????????????????????????????????????????????????? | | ??????????????????????????????????????? ?????????? | | ??????????????????????????????????????? ?????????? | | ??????????????????????######??????????? ?????????? | | ??????????????????????# #?????????? ?????????? | | ??????????????????????# #?????????? ?????????? | | ??????????????????????# #????###### ????????## | | ?????????????????#????# #??? # ????????# | | ?????????????????# ???# #??""" # #???????# | | ?????????????????# ???# ## """ # #???????# | | ?????????????""??# ??# ## """ # #???????# | | ??????????????""?# ## ## # #?####### | | ??????????????? # ? + ## """ #%#?# + | | ???????????????? + ?# ## """ # #?# ! # | | ?????????????????# ?# k ## """ # #?# # | | ????????????????## ## ?# # #?# # | | ????????????????# # ########;### ### """ # | | ????????????????# % A # """ + | | ?????????????? + T @ " """ # | | ????????????????# A %] % # # | | ????????????????# ## % ### ####"" # | | ????????????????## #?## ## #??#"Y # | | ?????????????????# ???## ## #??#"" # | | ?????????????????# %?????# ## #??# # | | ?????????????????# ??????# """ #########??####### | | ?????????????????#???????# T" #????????????????# | | ?????????????????????????# """ #????????????????? | | ?????????????????????????# #????????????????? | | ?????????????????????????#######????????????????? | | ????????????????????????????????????????????????? | | ????????????????????????????????????????????????? | | ????????????????????????????????????????????????? | | ????????????????????????????????????????????????? | | ?????????????????????????????????????????????????? | | ?????????????????????????????????????????????????? | | ?????????????????????????????????????????????????? | | ?????????????????????????????????????????????????? | | ?????????????????????????????????????????????????? | | ?????????????????????????????????????????????????? | | ?????????????????????????????????????????????????? | | ?????????????????????????????????????????????????? | | ?????????????????????????????????????????????????? | | ?????????????????????????????????????????????????? | +----------------------------------------------------+ Best States ------------- Heat Dissipation 25 Energy Generation 10 Energy Capacity 250 Matter Stores 258 Matter Capacity 300 Sight Range 16 Terrain Scan Density 10 Armor Coverage 225 Evasion (%) 55 Item Schematics ----------------- None Robot Schematics ------------------ None Fabricated ------------ Nothing Alien Tech Used ----------------- None Achievements -------------- None Challenges ------------ None Game ------ Seed BombThermalRedistributor Manual? 0 Play Time 00:05:22 Cumulative 1636.0 hours Start 2022.12.15 @ 14:40:37 End 2022.12.15 @ 14:45:48 Sessions 3 Manual Loads 0 Difficulty Rogue Special Mode Halloween2019/Abominations Game No. 573 Rogue 573 Adventurer 0 Explorer 0 Win Type - Total 121 Types 26/13/51/6/1/2/20/1/1 Lore% 97 Gallery% 97 Achievement% 86 Wizard Run 0 Options --------- ASCII 0 Keyboard 0 Movement Numpad Keybinds 0 Fullscreen 1 Font 18/SmallcapsGlow Map View 76x50 Tactical HUD 1 Map Filters NONE Filters NONE Steam 1 RUN: 39bffb83-1b21-4197-8835-5818db876bf4